bitfinex/quotes_BTCUSD_20241023
["timestamp","ask_amount","ask_price","bid_price","bid_amount"]
[1729653032317,0.01391072,67147.0,67146.0,0.119143]
[1729653032764,0.01391072,67147.0,67146.0,0.296043]
[1729653032979,0.01391072,67147.0,67146.0,0.44543088]
[1729653033434,0.01413373,67160.0,67156.0,0.119125]
[1729653033638,0.01413373,67160.0,67157.0,0.1769]
[1729653033848,0.01413373,67160.0,67157.0,0.296022]
[1729653034270,0.01413373,67160.0,67157.0,0.1769]
[1729653035123,0.01413373,67160.0,67151.0,0.0969]
[1729653035353,0.01413373,67160.0,67152.0,0.119131]
[1729653035775,0.01413373,67160.0,67151.0,0.0969]
[1729653035776,0.10909776,67158.0,67153.0,0.11913]
[1729653036221,0.10909776,67158.0,67151.0,0.0969]
[1729653036222,0.00913373,67152.0,67151.0,0.0969]
[1729653038663,0.02308048,67152.0,67151.0,0.0969]
[1729653040110,0.02308048,67152.0,67151.0,0.216034]
[1729653040316,0.02308048,67152.0,67151.0,0.0969]
[1729653041162,0.02308048,67152.0,67151.0,0.216034]
[1729653041569,0.02308048,67152.0,67151.0,0.0969]
[1729653042185,0.02307968,67152.0,67151.0,0.0969]
[1729653042812,0.02307968,67152.0,67151.0,0.216034]
[1729653043441,0.02307968,67152.0,67151.0,0.0969]
[1729653043648,0.02307968,67152.0,67151.0,0.216034]
[1729653044695,0.00913373,67152.0,67151.0,0.216034]
[1729653049678,0.02307896,67152.0,67151.0,0.216034]
[1729653053762,0.00913373,67152.0,67151.0,0.216034]
[1729653053973,0.02307912,67152.0,67151.0,0.216034]
[1729653057776,0.02308089,67152.0,67151.0,0.216034]
[1729653058261,0.0230821,67152.0,67151.0,0.216034]
[1729653058467,0.01851083,67152.0,67151.0,0.216034]
[1729653058701,0.01394837,67152.0,67151.0,0.216034]
[1729653060342,0.01851964,67152.0,67151.0,0.216034]
[1729653060570,0.01394837,67152.0,67151.0,0.216034]
[1729653061061,0.023,67154.0,67152.0,0.119131]
[1729653061281,0.03694972,67153.0,67152.0,0.119131]
[1729653062681,0.01394972,67153.0,67152.0,0.119131]
[1729653065795,0.01394972,67153.0,67152.0,0.119132]
[1729653066457,0.01394972,67153.0,67151.0,0.09855]
[1729653066671,0.01395529,67152.0,67151.0,0.336818]
[1729653067534,0.01395529,67152.0,67151.0,0.455952]
[1729653068173,0.00913373,67155.0,67151.0,0.455952]
[1729653068174,0.00913373,67155.0,67153.0,0.11913]
[1729653068653,0.01395457,67154.0,67153.0,0.11913]
[1729653068879,0.02790914,67154.0,67153.0,0.11913]
[1729653070625,0.01395457,67154.0,67153.0,0.11913]
[1729653072009,0.00457127,67156.0,67154.0,0.119128]
[1729653072239,0.00913373,67156.0,67154.0,0.119128]
[1729653072458,0.01395278,67155.0,67154.0,0.119128]
[1729653073147,0.01852405,67155.0,67152.0,0.238264]
[1729653073363,0.01395278,67154.0,67153.0,0.11913]
[1729653073832,0.03713373,67152.0,67151.0,0.00165]
[1729653074052,0.14688651,67152.0,67151.0,0.00165]
[1729653079711,0.14686897,67152.0,67151.0,0.00165]
[1729653081659,0.14186897,67152.0,67151.0,0.00165]
[1729653081893,0.14686897,67152.0,67151.0,0.00165]
[1729653082125,0.05106897,67152.0,67151.0,0.00165]
[1729653082835,0.04606897,67152.0,67151.0,0.00165]
[1729653083062,0.05106897,67152.0,67151.0,0.00165]
[1729653087808,0.17020097,67152.0,67151.0,0.00165]
[1729653088260,0.05106897,67152.0,67151.0,0.00165]
[1729653091002,0.06499757,67152.0,67151.0,0.00165]
[1729653091859,0.18412957,67152.0,67151.0,0.00165]
[1729653092778,0.33308872,67152.0,67151.0,0.00165]
[1729653092985,0.18412957,67152.0,67151.0,0.00165]
[1729653093875,0.18412461,67152.0,67151.0,0.00165]
[1729653101249,0.15626573,67152.0,67151.0,0.00165]
[1729653101453,0.18414768,67152.0,67151.0,0.00165]
[1729653103426,0.25623376,67150.0,67149.0,0.00165]
[1729653103641,0.28868698,67150.0,67149.0,0.00165]
[1729653103926,0.29324944,67150.0,67149.0,0.00165]
[1729653104619,0.27931952,67150.0,67149.0,0.00165]
[1729653104841,0.29327155,67150.0,67149.0,0.00165]
[1729653105061,0.35817034,67150.0,67149.0,0.00165]
[1729653105946,0.29327155,67150.0,67149.0,0.00165]
[1729653109225,0.33785465,67150.0,67149.0,0.00165]
[1729653111934,0.33785245,67150.0,67149.0,0.00165]
[1729653112402,0.33784995,67150.0,67149.0,0.00165]
[1729653114594,0.29326685,67150.0,67149.0,0.00165]
[1729653115027,0.4220225,67150.0,67149.0,0.00165]
[1729653115736,0.42202418,67150.0,67149.0,0.00165]
[1729653116460,0.36014319,67150.0,67149.0,0.00165]
[1729653117568,0.29326853,67150.0,67149.0,0.00165]
[1729653118465,0.00456246,67142.0,67141.0,0.0962]
[1729653118700,0.0324635,67142.0,67141.0,0.0962]
[1729653119832,0.14156126,67142.0,67141.0,0.0962]
[1729653120976,0.14156126,67142.0,67141.0,0.09785]
[1729653121180,0.12761143,67142.0,67141.0,0.09785]
[1729653121389,0.14156401,67142.0,67141.0,0.09785]
[1729653121616,0.12761143,67142.0,67141.0,0.09785]
[1729653121838,0.14156387,67142.0,67141.0,0.09785]
[1729653122501,0.03246611,67142.0,67141.0,0.09785]
[1729653125290,0.00456246,67142.0,67141.0,0.09785]
[1729653125518,0.0324714,67142.0,67141.0,0.09785]
[1729653128953,0.03247155,67142.0,67141.0,0.09785]
[1729653130343,0.03704282,67142.0,67141.0,0.09785]
[1729653130760,0.12565412,67142.0,67141.0,0.00165]
[1729653131400,0.06004282,67142.0,67141.0,0.00165]
[1729653131768,0.16914058,67142.0,67141.0,0.00165]
[1729653132581,0.26038149,67142.0,67141.0,0.00165]
[1729653132751,0.29329151,67142.0,67141.0,0.00165]
[1729653132952,0.36026306,67142.0,67141.0,0.00165]
[1729653133187,0.50592368,67142.0,67141.0,0.00165]
[1729653136139,0.43895158,67142.0,67141.0,0.00165]
[1729653136352,0.41104211,67142.0,67141.0,0.00165]
[1729653136567,0.43893315,67142.0,67141.0,0.00165]
[1729653136981,0.32983539,67142.0,67141.0,0.00165]
[1729653137193,0.02756246,67139.0,67138.0,0.00165]
[1729653137400,0.16455126,67139.0,67138.0,0.00165]
[1729653137812,0.16912253,67139.0,67138.0,0.00165]
[1729653140130,0.16911846,67139.0,67138.0,0.00165]
[1729653142711,0.28827346,67139.0,67138.0,0.00165]
[1729653143991,0.28826426,67139.0,67138.0,0.00165]
[1729653144438,0.28826369,67139.0,67138.0,0.00165]
[1729653146851,0.16910869,67139.0,67138.0,0.00165]
[1729653149026,0.17410869,67139.0,67138.0,0.00165]
[1729653150495,0.16017009,67139.0,67138.0,0.00165]
[1729653150701,0.16017411,67139.0,67138.0,0.00165]
[1729653151125,0.16017412,67139.0,67138.0,0.00165]
[1729653151335,0.19642603,67139.0,67138.0,0.00165]
[1729653152573,0.42823668,67139.0,67138.0,0.00165]
[1729653153849,0.57719583,67139.0,67138.0,0.00165]
[1729653154280,0.62181413,67139.0,67138.0,0.00165]
[1729653155778,0.57161959,67139.0,67138.0,0.00165]
[1729653156018,0.57722669,67139.0,67138.0,0.00165]
[1729653156239,0.58722669,67139.0,67138.0,0.00165]
[1729653157076,0.65413517,67139.0,67138.0,0.00165]
[1729653157510,0.00913373,67130.0,67129.0,0.098]
[1729653157726,0.03213373,67128.0,67127.0,0.0781]
[1729653157935,0.03213373,67127.0,67126.0,0.0904]
[1729653158152,0.19145689,67127.0,67126.0,0.0904]
[1729653158363,0.16913449,67127.0,67126.0,0.0904]
[1729653158799,0.19145689,67127.0,67126.0,0.0904]
[1729653159010,0.15518298,67127.0,67126.0,0.0904]
[1729653159216,0.16913447,67127.0,67126.0,0.0904]
[1729653159641,0.19145685,67127.0,67126.0,0.0904]
[1729653159849,0.16913447,67127.0,67126.0,0.0904]
[1729653160280,0.19145685,67127.0,67126.0,0.0904]
[1729653160493,0.16913447,67127.0,67126.0,0.0904]
[1729653160968,0.19145685,67127.0,67126.0,0.0904]
[1729653161214,0.16913447,67127.0,67126.0,0.0904]
[1729653161645,0.02756246,67124.0,67123.0,0.0904]
[1729653161855,0.1645632,67124.0,67123.0,0.0904]
[1729653162945,0.16455846,67124.0,67123.0,0.0904]
[1729653167641,0.18877456,67124.0,67123.0,0.0904]
[1729653167881,0.03213373,67122.0,67121.0,0.00160842]
[1729653168094,0.06003197,67122.0,67121.0,0.00160842]
[1729653172374,0.17412973,67122.0,67121.0,0.00160842]
[1729653172602,0.44227388,67122.0,67121.0,0.00160842]
[1729653173051,0.46459248,67122.0,67121.0,0.00160842]
[1729653173269,0.44227388,67122.0,67121.0,0.00160842]
[1729653173518,0.33317612,67122.0,67121.0,0.00160842]
[1729653174209,0.31921283,67122.0,67121.0,0.00160842]
[1729653174410,0.33314778,67122.0,67121.0,0.00160842]
[1729653174823,0.06500363,67122.0,67121.0,0.00160842]
[1729653175034,0.06500363,67122.0,67121.0,0.09370842]
[1729653175244,0.06500363,67122.0,67121.0,0.00160842]
[1729653176281,0.18418863,67122.0,67121.0,0.00160842]
[1729653178044,0.1702489,67122.0,67121.0,0.00160842]
[1729653178249,0.18417907,67122.0,67121.0,0.00160842]
[1729653182986,0.26194,67122.0,67121.0,0.00160842]
[1729653183429,0.28422828,67122.0,67121.0,0.00160842]
[1729653183651,0.26194,67122.0,67121.0,0.00160842]
[1729653183920,0.28422828,67122.0,67121.0,0.00160842]
[1729653184146,0.26194,67122.0,67121.0,0.00160842]
[1729653184376,0.28422828,67122.0,67121.0,0.00160842]
[1729653184616,0.23407966,67122.0,67121.0,0.00160842]
[1729653184836,0.28425468,67122.0,67121.0,0.00160842]
[1729653187048,0.12835873,67100.0,67099.0,0.0913]
[1729653187269,0.12835873,67100.0,67094.0,0.0913]
[1729653187270,0.15136373,67097.0,67094.0,0.0913]
[1729653187520,0.17923875,67097.0,67093.0,0.30263637]
[1729653187774,0.17923875,67097.0,67093.0,0.22203637]
[1729653188030,0.17923875,67097.0,67090.0,0.0806]
[1729653188478,0.17921273,67097.0,67090.0,0.0806]
[1729653188711,0.41375891,67097.0,67089.0,0.001686]
[1729653188986,0.53283109,67097.0,67089.0,0.001686]
[1729653189273,0.71463109,67097.0,67089.0,0.001686]
[1729653189578,0.80763109,67097.0,67089.0,0.001686]
[1729653190524,0.69853333,67097.0,67089.0,0.001686]
[1729653190767,0.52373333,67097.0,67089.0,0.001686]
[1729653191032,0.74192885,67097.0,67089.0,0.001686]
[1729653191975,0.71410543,67097.0,67089.0,0.001686]
[1729653192201,0.74186015,67097.0,67089.0,0.001686]
[1729653194769,0.52366463,67097.0,67089.0,0.001686]
[1729653195002,0.74186015,67097.0,67089.0,0.001686]
[1729653195766,0.72798279,67097.0,67089.0,0.001686]
[1729653196028,0.74184109,67097.0,67089.0,0.001686]
[1729653198277,0.66125406,67097.0,67089.0,0.001686]
[1729653198501,0.66125406,67097.0,67089.0,0.082286]
[1729653198710,0.5521563,67097.0,67089.0,0.082286]
[1729653199373,0.66125406,67097.0,67089.0,0.082286]
[1729653199590,0.66122738,67097.0,67089.0,0.082286]
[1729653200528,0.66123344,67097.0,67089.0,0.082286]
[1729653200755,0.77847832,67097.0,67089.0,0.082286]
[1729653203623,0.77847832,67097.0,67089.0,0.001686]
[1729653204698,0.78047832,67097.0,67089.0,0.001686]
[1729653205362,0.77847832,67097.0,67089.0,0.001686]
[1729653208839,0.55213568,67097.0,67089.0,0.001686]
[1729653210431,0.53828119,67097.0,67089.0,0.001686]
[1729653210636,0.55217312,67097.0,67089.0,0.001686]
[1729653210848,0.55220458,67097.0,67089.0,0.001686]
[1729653211494,0.52442064,67097.0,67089.0,0.001686]
[1729653211700,0.55203534,67097.0,67089.0,0.001686]
[1729653213619,0.6611331,67097.0,67089.0,0.001686]
[1729653213839,0.55203534,67097.0,67089.0,0.001686]
[1729653214262,0.55205109,67097.0,67089.0,0.001686]
[1729653216696,0.66071091,67097.0,67089.0,0.001686]
[1729653218394,0.55205109,67097.0,67089.0,0.001686]
[1729653218874,0.44295333,67097.0,67089.0,0.001686]
[1729653219216,0.55205109,67097.0,67095.0,0.0911]
[1729653220066,0.54705109,67097.0,67095.0,0.0911]
[1729653220275,0.54205109,67097.0,67095.0,0.0911]
[1729653221339,0.51424132,67097.0,67095.0,0.0911]
[1729653221542,0.54220238,67097.0,67095.0,0.0911]
[1729653222393,0.58724895,67097.0,67095.0,0.0911]
[1729653225139,0.67072786,67097.0,67095.0,0.0911]
[1729653225370,0.58724895,67097.0,67095.0,0.0911]
[1729653228802,0.57326842,67097.0,67095.0,0.0911]
[1729653229224,0.5872449,67097.0,67095.0,0.0911]
[1729653229433,0.54219833,67097.0,67095.0,0.0911]
[1729653231382,0.79701895,67097.0,67095.0,0.0911]
[1729653232491,0.34975814,67097.0,67095.0,0.0911]
[1729653232695,0.32180113,67097.0,67095.0,0.0911]
[1729653232899,0.34975007,67097.0,67095.0,0.0911]
[1729653233519,0.23052007,67097.0,67095.0,0.0911]
[1729653233951,0.34975007,67097.0,67095.0,0.0911]
[1729653234193,0.43916874,67097.0,67095.0,0.0911]
[1729653234612,0.46152082,67097.0,67095.0,0.0911]
[1729653235073,0.20731143,67097.0,67095.0,0.0911]
[1729653235285,0.20731143,67097.0,67089.0,0.001686]
[1729653235286,0.33753416,67097.0,67096.0,0.167486]
[1729653235500,0.15013413,67097.0,67096.0,0.167486]
[1729653235709,0.25201139,67097.0,67096.0,0.167486]
[1729653235941,0.21568485,67097.0,67096.0,0.167486]
[1729653236158,0.25199853,67097.0,67096.0,0.167486]
[1729653236375,0.12776853,67097.0,67096.0,0.167486]
[1729653236595,0.24699853,67097.0,67096.0,0.167486]
[1729653237466,0.20229857,67097.0,67096.0,0.167486]
[1729653237893,0.08806857,67097.0,67096.0,0.167486]
[1729653239672,0.06072169,67097.0,67096.0,0.167486]
[1729653239851,0.08306857,67097.0,67096.0,0.167486]
[1729653240085,0.06072169,67097.0,67096.0,0.167486]
[1729653240787,0.18495169,67097.0,67096.0,0.167486]
[1729653241035,0.20729857,67097.0,67096.0,0.167486]
[1729653241267,0.18495169,67097.0,67096.0,0.167486]
[1729653241475,0.06072169,67097.0,67096.0,0.167486]
[1729653242006,0.03278041,67097.0,67096.0,0.167486]
[1729653242272,0.06069341,67097.0,67096.0,0.167486]
[1729653242527,0.04673685,67097.0,67096.0,0.167486]
[1729653242757,0.06069329,67097.0,67096.0,0.167486]
[1729653243443,0.06569329,67097.0,67096.0,0.167486]
[1729653243691,0.08802359,67097.0,67096.0,0.167486]
[1729653243926,0.08302359,67097.0,67096.0,0.167486]
[1729653244158,0.06569329,67097.0,67096.0,0.167486]
[1729653244424,0.06069329,67097.0,67096.0,0.167486]
[1729653245670,0.04673685,67097.0,67096.0,0.167486]
[1729653245913,0.0606901,67097.0,67096.0,0.167486]
[1729653249613,0.0376901,67097.0,67096.0,0.286718]
[1729653251274,0.03311883,67097.0,67096.0,0.286718]
[1729653252348,0.02873569,67097.0,67096.0,0.286718]
[1729653252750,0.01477925,67097.0,67096.0,0.286718]
[1729653252955,0.02873248,67097.0,67096.0,0.286718]
[1729653254847,0.03311562,67097.0,67096.0,0.286718]
[1729653255082,0.02873248,67097.0,67096.0,0.286718]
[1729653256725,0.01477925,67097.0,67096.0,0.286718]
[1729653258110,0.02873248,67097.0,67096.0,0.286718]
[1729653258308,0.01477925,67097.0,67096.0,0.286718]
[1729653259085,0.01477925,67097.0,67096.0,0.43567715]
[1729653260220,0.02873248,67097.0,67096.0,0.43567715]
[1729653260448,0.01477925,67097.0,67096.0,0.43567715]
[1729653261128,0.000826,67097.0,67096.0,0.43567715]
[1729653264511,0.000826,67097.0,67096.0,0.43610588]
[1729653268161,0.000826,67097.0,67096.0,0.43567715]
[1729653276210,0.01476753,67097.0,67096.0,0.43567715]
[1729653278113,0.01477099,67097.0,67096.0,0.43567715]
[1729653280266,0.000826,67097.0,67096.0,0.43567715]
[1729653280467,0.01477696,67097.0,67096.0,0.43567715]
[1729653285493,0.01478732,67097.0,67096.0,0.43567715]
[1729653285699,0.000826,67097.0,67096.0,0.43567715]
[1729653285903,0.01478764,67097.0,67096.0,0.43567715]
[1729653296399,0.01479835,67097.0,67096.0,0.43567715]
[1729653296604,0.01479845,67097.0,67096.0,0.43567715]
[1729653299824,0.01480152,67097.0,67096.0,0.43567715]
[1729653300673,0.01480152,67097.0,67096.0,0.120918]
[1729653301719,0.01480152,67097.0,67096.0,0.32901576]
[1729653301925,0.01480152,67097.0,67096.0,0.41051576]
[1729653306459,0.01480086,67097.0,67096.0,0.45514607]
[1729653309461,0.01480086,67097.0,67096.0,0.45516286]
[1729653312061,0.01480086,67097.0,67096.0,0.60455074]
[1729653312267,0.000826,67097.0,67096.0,0.75919785]
[1729653312464,0.000826,67097.0,67096.0,0.7815214]
[1729653312662,0.000826,67097.0,67096.0,0.7790014]
[1729653313043,0.000826,67097.0,67096.0,0.66990364]
[1729653313247,0.000826,67097.0,67096.0,0.67190364]
[1729653314224,0.000826,67097.0,67096.0,0.66990364]
[1729653315048,0.000826,67097.0,67096.0,0.67190364]
[1729653316257,0.000826,67097.0,67096.0,0.66990364]
[1729653316468,0.000826,67097.0,67096.0,0.78138867]
[1729653316868,0.000826,67097.0,67096.0,0.78338867]
[1729653317081,0.000826,67097.0,67096.0,0.78138867]
[1729653318196,0.000826,67097.0,67096.0,0.56080588]
[1729653318406,0.000826,67097.0,67096.0,0.78140265]
[1729653319126,0.000826,67097.0,67096.0,0.66990364]
[1729653319467,0.000826,67097.0,67096.0,0.76990364]
[1729653320363,0.000826,67097.0,67096.0,0.85910423]
[1729653321543,0.000826,67097.0,67096.0,0.75000647]
[1729653321757,0.000826,67097.0,67096.0,0.85909638]
[1729653322403,0.000826,67097.0,67096.0,0.76990364]
[1729653323540,0.000826,67097.0,67096.0,0.83679601]
[1729653323740,0.000826,67097.0,67096.0,0.76990364]
[1729653324619,0.000826,67097.0,67096.0,0.83678848]
[1729653324787,0.000826,67097.0,67096.0,0.76990364]
[1729653326802,0.000826,67097.0,67096.0,0.83678224]
[1729653327473,0.000826,67097.0,67096.0,0.83678208]
[1729653327677,0.000826,67097.0,67096.0,0.76990364]
[1729653327855,0.000826,67097.0,67096.0,0.83678208]
[1729653328499,0.000826,67097.0,67096.0,0.76990364]
[1729653329121,0.000826,67097.0,67096.0,0.83678208]
[1729653329448,0.000826,67097.0,67096.0,0.76990364]
[1729653329686,0.000826,67097.0,67096.0,0.83678208]
[1729653330543,0.000826,67097.0,67096.0,0.8367805]
[1729653333420,0.000826,67097.0,67096.0,0.81450723]
[1729653333646,0.000826,67097.0,67096.0,0.81450868]
[1729653334047,0.000826,67097.0,67096.0,0.8367805]
[1729653337141,0.000826,67097.0,67096.0,0.76990364]
[1729653337607,0.000826,67097.0,67096.0,0.8367805]
[1729653340538,0.000826,67097.0,67096.0,0.76990364]
[1729653340893,0.000826,67097.0,67096.0,0.83685244]
[1729653341096,0.000826,67097.0,67096.0,0.76990364]
[1729653343890,0.000826,67097.0,67096.0,0.85916794]
[1729653345410,0.000826,67097.0,67096.0,0.76990364]
[1729653346607,0.000826,67097.0,67096.0,0.88148402]
[1729653348383,0.000826,67097.0,67096.0,0.76990364]
[1729653350860,0.000826,67097.0,67096.0,0.77190364]
[1729653351819,0.000826,67097.0,67096.0,0.76990364]
[1729653352423,0.000826,67097.0,67096.0,0.88155757]
[1729653352648,0.000826,67097.0,67096.0,0.76990364]
[1729653353052,0.000826,67097.0,67096.0,0.77190364]
[1729653353260,0.000826,67097.0,67096.0,0.81845492]
[1729653354466,0.000826,67097.0,67096.0,0.77190364]
[1729653354665,0.000826,67097.0,67096.0,0.81844618]
[1729653356168,0.000826,67097.0,67096.0,0.81644618]
[1729653357830,0.000826,67097.0,67096.0,0.76990364]
[1729653358158,0.000826,67097.0,67096.0,0.81644307]
[1729653358563,0.000826,67097.0,67096.0,0.81644121]
[1729653358778,0.000826,67097.0,67096.0,0.81644007]
[1729653359146,0.000826,67097.0,67096.0,0.76990364]
[1729653359362,0.000826,67097.0,67096.0,0.81644012]
[1729653359567,0.000826,67097.0,67096.0,0.76990364]
[1729653359728,0.000826,67097.0,67096.0,0.81643859]
[1729653360597,0.000826,67097.0,67096.0,0.76990364]
[1729653360948,0.000826,67097.0,67096.0,0.70734031]
[1729653361196,0.000826,67097.0,67096.0,0.81643807]
[1729653362096,0.000826,67097.0,67096.0,0.81843807]
[1729653363330,0.000826,67097.0,67096.0,0.81643807]
[1729653363581,0.000826,67097.0,67096.0,0.95233453]
[1729653364020,0.000826,67097.0,67096.0,0.81643807]
[1729653364253,0.000826,67097.0,67096.0,0.81843807]
[1729653366313,0.000826,67097.0,67096.0,0.81643807]
[1729653370399,0.000826,67097.0,67096.0,0.81843807]
[1729653373692,0.000826,67097.0,67096.0,0.95241939]
[1729653374122,0.000826,67097.0,67096.0,0.84132163]
[1729653374317,0.000826,67097.0,67096.0,0.52684031]
[1729653374540,0.000826,67097.0,67096.0,0.48030588]
[1729653374785,0.000826,67097.0,67096.0,0.52683874]
[1729653374930,0.000826,67097.0,67096.0,0.70463874]
[1729653375354,0.000826,67097.0,67096.0,0.70663874]
[1729653376582,0.000826,67097.0,67096.0,0.8157365]
[1729653376780,0.000826,67097.0,67096.0,0.70663874]
[1729653378246,0.000826,67097.0,67096.0,0.70463874]
[1729653380769,0.000826,67097.0,67096.0,0.83862006]
[1729653380970,0.000826,67097.0,67096.0,0.70463874]
[1729653382328,0.000826,67097.0,67096.0,0.70663874]
[1729653405717,0.000826,67097.0,67096.0,2.05407474]
[1729653414559,0.00064662,67097.0,67096.0,2.05407474]
[1729653422787,0.00064662,67097.0,67096.0,2.05207474]
[1729653422989,0.00064662,67097.0,67096.0,1.87427474]
[1729653423331,0.00064662,67097.0,67096.0,1.9833725]
[1729653423700,0.00064662,67097.0,67096.0,2.11751026]
[1729653424880,0.00064662,67097.0,67096.0,1.9833725]
[1729653425086,0.00064662,67097.0,67096.0,1.71731315]
[1729653425295,0.18204662,67097.0,67096.0,1.82909271]
[1729653425504,0.18204662,67097.0,67096.0,1.78435907]
[1729653425923,0.18204662,67097.0,67096.0,1.89345683]
[1729653426541,0.18204662,67097.0,67096.0,1.97109331]
[1729653427780,0.18204662,67097.0,67096.0,1.568354]
[1729653429751,0.18204662,67097.0,67096.0,1.67745176]
[1729653434257,0.00064662,67097.0,67096.0,1.67745176]
[1729653437258,0.00064662,67097.0,67096.0,1.568354]
[1729653437259,0.17744662,67097.0,67096.0,1.568354]
[1729653437937,0.17744662,67097.0,67096.0,1.67745176]
[1729653438409,0.18201789,67097.0,67096.0,1.568354]
[1729653438651,0.18201789,67097.0,67096.0,1.449122]
[1729653438652,0.20033128,67097.0,67096.0,1.449122]
[1729653439090,0.21426173,67097.0,67096.0,1.449122]
[1729653439292,0.21426173,67097.0,67096.0,1.568354]
[1729653439507,0.21426173,67097.0,67096.0,1.449122]
[1729653439708,0.21425771,67097.0,67096.0,1.449122]
[1729653441203,0.20032726,67097.0,67096.0,1.449122]
[1729653442199,0.20032726,67097.0,67096.0,1.568354]
[1729653447159,0.18640103,67097.0,67096.0,1.568354]
[1729653447380,0.20032324,67097.0,67096.0,1.568354]
[1729653449294,0.21424859,67097.0,67096.0,1.568354]
[1729653450002,0.21424859,67097.0,67096.0,1.449122]
[1729653450541,0.21425087,67097.0,67096.0,1.449122]
[1729653450754,0.21425087,67097.0,67096.0,1.568354]
[1729653451046,0.21425087,67097.0,67096.0,1.449122]
[1729653451240,0.21425087,67097.0,67096.0,1.568354]
[1729653452274,0.20032595,67097.0,67096.0,1.568354]
[1729653452491,0.21425685,67097.0,67096.0,1.568354]
[1729653454271,0.2142707,67097.0,67096.0,1.568354]
[1729653454618,0.2142707,67097.0,67096.0,1.449122]
[1729653454831,0.34636846,67097.0,67096.0,1.449122]
[1729653455645,0.2372707,67097.0,67096.0,1.449122]
[1729653456722,0.3565007,67097.0,67096.0,1.449122]
[1729653457288,0.2372707,67097.0,67096.0,1.449122]
[1729653458103,0.2233318,67097.0,67096.0,1.449122]
[1729653458317,0.25119362,67097.0,67096.0,1.449122]
[1729653460365,0.37042362,67097.0,67096.0,1.449122]
[1729653463057,0.520452,67097.0,67096.0,1.449122]
[1729653464204,0.64242095,67097.0,67096.0,1.41556027]
[1729653467369,0.64442095,67097.0,67096.0,1.41556027]
[1729653468074,0.64242095,67097.0,67096.0,1.41556027]
[1729653469519,0.6424149,67097.0,67096.0,1.41721027]
[1729653476714,0.6444149,67097.0,67096.0,1.41721027]
[1729653477322,0.78889583,67097.0,67096.0,1.41721027]
[1729653477554,0.7444149,67097.0,67096.0,1.41721027]
[1729653477947,0.7424149,67097.0,67096.0,1.41721027]
[1729653479417,0.8091363,67097.0,67096.0,1.41721027]
[1729653479960,0.7424149,67097.0,67096.0,1.41721027]
[1729653480391,0.78128053,67097.0,67096.0,1.41721027]
[1729653480594,0.81112893,67097.0,67096.0,1.41721027]
[1729653480808,0.80912893,67097.0,67096.0,1.41721027]
[1729653482520,0.90672859,67097.0,67096.0,1.41721027]
[1729653482939,1.01582635,67097.0,67096.0,1.41721027]
[1729653483141,1.01782635,67097.0,67096.0,1.41721027]
[1729653483343,1.10685533,67097.0,67096.0,1.41721027]
[1729653483642,1.01782635,67097.0,67096.0,1.41721027]
[1729653484183,1.12911257,67097.0,67096.0,1.41721027]
[1729653485234,1.01782635,67097.0,67096.0,1.41721027]
[1729653485435,1.06270551,67097.0,67096.0,1.41721027]
[1729653485638,1.19624898,67097.0,67096.0,1.41721027]
[1729653486042,1.06270551,67097.0,67096.0,1.41721027]
[1729653486387,1.19628425,67097.0,67096.0,1.41721027]
[1729653486740,1.16843585,67097.0,67096.0,1.41721027]
[1729653486939,1.19628377,67097.0,67096.0,1.41721027]
[1729653487148,1.19631278,67097.0,67096.0,1.41721027]
[1729653487592,1.77531278,67097.0,67096.0,1.41721027]
[1729653487821,1.70596435,67097.0,67096.0,0.96102707]
[1729653488027,1.59686659,67097.0,67096.0,0.96102707]
[1729653488429,1.60361339,67097.0,67096.0,0.96102707]
[1729653489472,1.71271115,67097.0,67096.0,0.96102707]
[1729653490283,1.73604766,67097.0,67096.0,0.47503587]
[1729653491741,1.73594158,67097.0,67096.0,0.47503587]
[1729653492348,1.73594158,67097.0,67096.0,0.44522787]
[1729653493387,1.62684382,67097.0,67096.0,0.44522787]
[1729653493602,1.73594158,67097.0,67096.0,0.41541987]
[1729653493815,1.51274606,67097.0,67096.0,0.41541987]
[1729653494021,1.51774606,67097.0,67096.0,0.41541987]
[1729653494223,1.73594158,67097.0,67096.0,0.38184863]
[1729653494396,1.7359111,67097.0,67096.0,0.38184863]
[1729653495175,1.51771558,67097.0,67096.0,0.38184863]
[1729653495389,1.7359111,67097.0,67096.0,0.38184863]
[1729653496260,1.7359111,67097.0,67061.0,0.0782]
[1729653496261,0.14321441,67080.0,67061.0,0.0782]
[1729653496475,5.93501993,67080.0,67072.0,0.22203637]
[1729653496711,6.15069202,67080.0,67072.0,0.22203637]
[1729653497119,6.15068661,67080.0,67072.0,0.22203637]
[1729653497581,6.08397367,67080.0,67061.0,0.0782]
[1729653497751,6.15068661,67080.0,67061.0,0.0782]
[1729653498180,6.15068016,67080.0,67061.0,0.0782]
[1729653498555,6.19306498,67080.0,67061.0,0.0782]
[1729653498757,6.35709973,67080.0,67057.0,0.22203637]
[1729653498975,0.56173779,67074.0,67057.0,0.22203637]
[1729653499198,0.78306973,67074.0,67057.0,0.22203637]
[1729653499403,0.85229459,67074.0,67057.0,0.22203637]
[1729653499619,5.79319683,67074.0,67057.0,0.22203637]
[1729653499819,5.74864134,67074.0,67057.0,0.22203637]
[1729653500044,5.89760049,67074.0,67057.0,0.22203637]
[1729653500265,5.83096816,67074.0,67057.0,0.22203637]
[1729653500500,5.95726005,67074.0,67057.0,0.22203637]
[1729653500924,5.95726,67074.0,67057.0,0.22203637]
[1729653501676,0.84064116,67074.0,67057.0,0.22203637]
[1729653501879,5.89064116,67074.0,67057.0,0.22203637]
[1729653502300,5.86282386,67074.0,67057.0,0.22203637]
[1729653502512,5.9996747,67074.0,67057.0,0.22203637]
[1729653502946,5.89057694,67074.0,67057.0,0.22203637]
[1729653503381,5.89057694,67074.0,67053.0,0.079886]
[1729653503382,0.01417127,67054.0,67053.0,0.079886]
[1729653503603,0.51041072,67054.0,67053.0,0.001686]
[1729653503819,0.52428726,67054.0,67053.0,0.001686]
[1729653504233,0.51041072,67054.0,67053.0,0.001686]
[1729653504429,0.61915545,67054.0,67053.0,0.001686]
[1729653505343,0.74825321,67054.0,67053.0,0.001686]
[1729653505585,0.64415545,67054.0,67053.0,0.001686]
[1729653505809,0.75325321,67054.0,67053.0,0.001686]
[1729653506029,0.64415545,67054.0,67053.0,0.001686]
[1729653506245,0.75325321,67054.0,67053.0,0.001686]
[1729653506451,0.76710846,67054.0,67053.0,0.001686]
[1729653506653,0.6580107,67054.0,67053.0,0.001686]
[1729653507063,0.6560107,67054.0,67053.0,0.001686]